bitfinex-derivatives/quotes_BNBF0:USTF0_20250221
["timestamp","ask_amount","ask_price","bid_price","bid_amount"]
[1740150370255,3.07410753,664.13,663.41,0.30147269]
[1740150370459,3.07410753,664.12,663.41,0.30147269]
[1740150370661,2.30142492,664.15,663.41,0.30147269]
[1740150370862,2.30142492,664.11,663.41,0.30147269]
[1740150371061,3.0738343,664.1,663.41,0.30147269]
[1740150371257,2.30142492,664.11,663.41,0.30147269]
[1740150371562,1.48496711,664.21,663.41,0.30147269]
[1740150371758,4.55860189,664.2,663.41,0.30147269]
[1740150371954,3.07363478,664.19,663.41,0.30147269]
[1740150372156,3.07363478,664.18,663.41,0.30147269]
[1740150372456,1.48496711,664.15,663.41,0.30147269]
[1740150372657,2.30084432,664.18,663.41,0.30147269]
[1740150372658,3.07363478,664.14,663.41,0.30147269]
[1740150372862,3.07363478,664.13,663.41,0.30147269]
[1740150373063,3.07363478,664.12,663.41,0.30147269]
[1740150373256,3.07363478,664.11,663.41,0.30147269]
[1740150373563,2.30084432,664.12,663.41,0.30147269]
[1740150373758,1.48496711,664.3,663.41,0.30147269]
[1740150373966,3.07445585,664.29,663.41,0.30147269]
[1740150374164,3.07445585,664.28,663.41,0.30147269]
[1740150374463,2.65482037,665.24,663.41,0.30147269]
[1740150374464,4.55942296,664.27,663.41,0.30147269]
[1740150374661,4.55942296,664.26,663.41,0.30147269]
[1740150374860,4.55942296,664.25,663.41,0.30147269]
[1740150375065,5.37633749,664.24,663.41,0.30147269]
[1740150375258,3.07445585,664.23,663.41,0.30147269]
[1740150375463,3.07445585,664.22,663.41,0.30147269]
[1740150375666,1.48496711,664.2,663.41,0.30147269]
[1740150375868,2.30188164,664.21,663.41,0.30147269]
[1740150376166,1.48620029,664.18,663.41,0.30147269]
[1740150376368,3.07562713,664.17,663.41,0.30147269]
[1740150376567,3.07562713,664.16,663.41,0.30147269]
[1740150376762,3.07562713,664.15,663.41,0.30147269]
[1740150376961,3.07562713,664.14,663.42,1.386]
[1740150377163,3.07562713,664.13,663.43,0.3014636]
[1740150377359,3.07562713,664.12,663.43,0.3014636]
[1740150377563,3.07562713,664.11,663.43,0.3014636]
[1740150377765,3.07562713,664.1,663.43,0.3014636]
[1740150377962,3.07705497,664.09,663.43,0.3014636]
[1740150378166,3.07702163,664.08,663.43,0.3014636]
[1740150378366,3.07702163,664.07,663.43,0.3014636]
[1740150378566,3.07702163,664.06,663.43,0.3014636]
[1740150378767,3.07702163,664.05,663.43,0.3014636]
[1740150379068,1.48685567,664.03,663.43,0.3014636]
[1740150379267,3.07702163,664.02,663.43,0.3014636]
[1740150379465,3.07702163,664.01,663.43,0.3014636]
[1740150379662,3.07702163,664.0,663.43,0.3014636]
[1740150379968,5.38083748,663.99,663.43,0.3014636]
[1740150380168,3.07747455,663.98,663.43,0.3014636]
[1740150380366,2.30381585,663.99,663.43,0.3014636]
[1740150380568,3.07816475,663.98,663.43,0.3014636]
[1740150380870,2.30381585,663.98,663.43,0.3014636]
[1740150381068,1.48712065,664.04,663.43,0.3014636]
[1740150381369,3.07837751,664.03,663.43,0.3014636]
[1740150381571,6.87011237,664.02,663.43,0.3014636]
[1740150381767,3.07837751,664.01,663.43,0.3014636]
[1740150381967,2.30461421,664.02,663.43,0.3014636]
[1740150382464,1.48712065,664.04,663.43,0.3014636]
[1740150382663,3.07844709,664.03,663.43,0.3014636]
[1740150382872,1.48712065,664.06,663.43,0.3014636]
[1740150383070,2.30477937,664.05,663.43,0.3014636]
[1740150383468,1.48712065,664.15,663.43,0.3014636]
[1740150383668,3.07864193,664.14,663.43,0.3014636]
[1740150383868,5.38322814,664.13,663.43,0.3014636]
[1740150384069,3.07854945,664.12,663.43,0.3014636]
[1740150384270,3.07854945,664.11,663.43,0.3014636]
[1740150384462,3.07854945,664.1,663.43,0.3014636]
[1740150384664,3.07854945,664.09,663.43,0.3014636]
[1740150384868,2.30467869,664.09,663.43,0.3014636]
[1740150385667,1.48759107,664.24,663.43,0.3014636]
[1740150385865,4.56646963,664.23,663.43,0.3014636]
[1740150386064,3.5525078,665.18,663.43,0.3014636]
[1740150386065,3.07887856,664.22,663.43,0.3014636]
[1740150386270,3.07887856,664.21,663.43,0.3014636]
[1740150386471,3.07887856,664.2,663.43,0.3014636]
[1740150386769,3.07887856,664.19,663.43,0.3014636]
[1740150386970,2.30451133,664.18,663.43,0.3014636]
[1740150387670,1.48759107,664.28,663.43,0.3014636]
[1740150387870,3.07881093,664.27,663.43,0.3014636]
[1740150388075,3.07881093,664.26,663.43,0.3014636]
[1740150388270,5.38350186,664.25,663.43,0.3014636]
[1740150388465,3.07881093,664.24,663.43,0.3014636]
[1740150388665,3.07881093,664.23,663.43,0.3014636]
[1740150388865,5.38350186,664.22,663.43,0.3014636]
[1740150389070,3.07881093,664.21,663.43,0.3014636]
[1740150389371,1.48759107,664.15,663.43,0.3014636]
[1740150389564,3.07881093,664.14,663.43,0.3014636]
[1740150389767,3.07777966,664.13,663.43,0.3014636]
[1740150389964,3.07777966,664.12,663.43,0.3014636]
[1740150390170,3.07777966,664.11,663.43,0.3014636]
[1740150390470,3.07777966,664.1,663.43,0.3014636]
[1740150390667,3.07777966,664.09,663.43,0.3014636]
[1740150390971,2.30469093,664.09,663.43,0.3014636]
[1740150391372,1.48721254,664.38,663.43,0.3014636]
[1740150391572,3.07815306,664.37,663.43,0.3014636]
[1740150391773,3.07815306,664.36,663.43,0.3014636]
[1740150391973,3.07815306,664.35,663.43,0.3014636]
[1740150392171,3.07815306,664.34,663.43,0.3014636]
[1740150392367,3.07815306,664.33,663.43,0.3014636]
[1740150392571,3.07815306,664.32,663.43,0.3014636]
[1740150392767,3.07815306,664.31,663.43,0.3014636]
[1740150393075,3.07815306,664.3,663.43,0.3014636]
[1740150393373,3.07815306,664.29,663.43,0.3014636]
[1740150393672,3.07815306,664.28,663.43,0.3014636]
[1740150393873,3.07815306,664.27,663.43,0.3014636]
[1740150394076,3.07815306,664.26,663.43,0.3014636]
[1740150394372,5.38243863,664.25,663.43,0.3014636]
[1740150394574,3.07815306,664.24,663.43,0.3014636]
[1740150394776,3.07815306,664.23,663.43,0.3014636]
[1740150394970,3.07815306,664.22,663.43,0.3014636]
[1740150395272,3.07815306,664.21,663.43,0.3014636]
[1740150395472,3.07815306,664.2,663.43,0.3014636]
[1740150395668,3.07815306,664.19,663.43,0.3014636]
[1740150395870,1.48721254,664.16,663.43,0.3014636]
[1740150396174,1.48721254,664.08,663.43,0.3014636]
[1740150396375,4.5653656,664.07,663.47,2.29058457]
[1740150396574,1.48721254,664.05,663.48,0.30144088]
[1740150396773,3.07815306,664.04,663.48,0.30144088]
[1740150396978,3.07815306,664.03,663.48,0.30144088]
[1740150397274,3.07815306,664.02,663.48,0.30144088]
[1740150397474,3.07815306,664.01,663.48,0.30144088]
[1740150397675,3.0768416,664.0,663.48,0.30144088]
[1740150397875,3.0768416,663.99,663.48,0.30144088]
[1740150398072,3.0768416,663.98,663.48,0.30144088]
[1740150398273,2.30428557,663.98,663.48,0.30144088]
[1740150398473,3.07655741,663.97,663.48,0.30144088]
[1740150398669,3.07655741,663.96,663.48,0.30144088]
[1740150398869,5.38084298,663.95,663.48,0.30144088]
[1740150399074,3.07632225,663.94,663.48,0.30144088]
[1740150399270,2.30428557,663.95,663.48,0.30144088]
[1740150399474,3.07626491,663.94,663.48,0.30144088]
[1740150399674,5.38055048,663.93,663.48,0.30144088]
[1740150399873,3.07626491,663.92,663.48,0.30144088]
[1740150400069,2.30428557,663.92,663.48,0.30144088]
[1740150400675,3.07586079,663.91,663.48,0.30144088]
[1740150400874,3.07578086,663.9,663.48,0.30144088]
[1740150401071,1.4868128,663.94,663.48,0.30144088]
[1740150401269,3.07579743,663.93,663.48,0.30144088]
[1740150401473,4.56261023,663.92,663.48,0.30144088]
[1740150401775,4.56261023,663.91,663.48,0.30144088]
[1740150401977,2.3027732,663.93,663.48,0.30144088]
[1740150401978,4.56261023,663.9,663.48,0.30144088]
[1740150402176,3.07579743,663.89,663.48,0.30144088]
[1740150402376,3.07579743,663.88,663.48,0.30144088]
[1740150402676,3.07579743,663.87,663.48,0.30144088]
[1740150402976,1.4868128,663.82,663.48,0.30144088]
[1740150403177,3.07579743,663.81,663.48,0.30144088]
[1740150403373,2.3027732,663.86,663.48,0.30144088]
[1740150403679,1.48565547,663.77,663.48,0.30144088]
[1740150403979,4.55975084,663.76,663.48,0.30144088]
[1740150404278,1.48565547,663.74,663.48,0.30144088]
[1740150404477,1.48565547,663.68,663.48,0.30144088]
[1740150404779,3.07409537,663.67,663.42,1.386]
[1740150404980,3.07409537,663.66,663.42,1.386]
[1740150405175,3.07409537,663.65,663.42,1.386]
[1740150405377,2.3027732,663.73,663.42,1.386]
[1740150405576,2.3027732,663.65,663.42,1.386]
[1740150406280,1.48465903,663.77,663.42,1.386]
[1740150406478,1.48465903,663.75,663.42,1.386]
[1740150406672,3.07175155,663.74,663.42,1.386]
[1740150406880,2.29974553,663.73,663.42,1.386]
[1740150407073,2.29974553,663.73,662.81,2.29058457]
[1740150407273,2.29974553,663.73,662.83,0.30173649]
[1740150407677,2.29974553,663.73,662.96,2.29058457]
[1740150407879,2.29974553,663.73,662.97,0.30167277]
[1740150408074,2.65448806,665.27,662.97,0.30167277]
[1740150408075,1.48465903,663.87,662.97,0.30167277]
[1740150408279,3.54416325,665.14,662.97,0.30167277]
[1740150408475,1.48449616,663.93,662.97,0.30167277]
[1740150408779,3.07184485,663.92,662.97,0.30167277]
[1740150408979,3.07184485,663.91,662.97,0.30167277]
[1740150409180,3.07184485,663.9,662.97,0.30167277]
[1740150409479,6.85628674,663.89,662.97,0.30167277]
[1740150409672,3.07184485,663.88,662.97,0.30167277]
[1740150409873,3.07184485,663.87,662.97,0.30167277]
[1740150410081,3.07184485,663.86,662.97,0.30167277]
[1740150410381,2.29994573,663.87,662.97,0.30167277]
[1740150410382,3.07184485,663.85,662.97,0.30167277]
[1740150410580,3.07184485,663.84,662.97,0.30167277]
[1740150410880,3.07184485,663.83,662.97,0.30167277]
[1740150411080,2.29994573,663.84,662.97,0.30167277]
[1740150411275,1.48438282,664.09,662.97,0.30167277]
[1740150411473,3.07148871,664.08,662.97,0.30167277]
[1740150411674,3.07148871,664.07,662.97,0.30167277]
[1740150411984,3.07148871,664.06,662.97,0.30167277]
[1740150412182,3.07148871,664.05,662.97,0.30167277]
[1740150412376,3.07148871,664.04,662.97,0.30167277]
[1740150412577,3.07148871,664.03,662.97,0.30167277]
[1740150412878,3.07148871,664.02,662.97,0.30167277]
[1740150413079,3.07148871,664.01,662.97,0.30167277]
[1740150413281,3.07191563,664.0,662.97,0.30167277]
[1740150413480,3.07191563,663.99,662.97,0.30167277]
[1740150413778,3.07191563,663.98,662.97,0.30167277]
[1740150413979,3.07191563,663.97,662.97,0.30167277]
[1740150414179,3.07191563,663.96,662.97,0.30167277]
[1740150414382,3.07191563,663.95,662.97,0.30167277]
[1740150414682,3.07191563,663.94,662.97,0.30167277]
[1740150414885,3.07191563,663.93,662.97,0.30167277]
[1740150415183,3.07191563,663.92,662.97,0.30167277]
[1740150415378,5.37155809,663.91,662.97,0.30167277]
[1740150415582,3.07191563,663.9,662.97,0.30167277]
[1740150415785,3.07303425,663.89,662.97,0.30167277]
[1740150415982,2.29964246,663.91,662.97,0.30167277]
[1740150416180,3.07304869,663.9,662.97,0.30167277]
[1740150416381,3.07304869,663.89,662.97,0.30167277]
[1740150416581,3.07343751,663.88,662.97,0.30167277]
[1740150416876,1.48447975,663.98,662.97,0.30167277]
[1740150417078,3.07354793,663.97,662.97,0.30167277]
[1740150417281,3.07354793,663.96,662.97,0.30167277]
[1740150417483,3.07354793,663.95,662.97,0.30167277]
[1740150417683,5.37505499,663.94,662.97,0.30167277]
[1740150417881,2.30150706,663.94,663.11,2.29058457]
[1740150418186,1.48526924,664.03,663.11,2.29058457]
[1740150418481,1.11177095,665.59,663.13,0.30159998]
[1740150418482,6.86178506,664.02,663.13,0.30159998]
[1740150418684,3.07461248,664.01,663.13,0.30159998]
[1740150418881,3.07461248,664.0,663.13,0.30159998]
[1740150419081,2.30190334,664.01,663.13,0.30159998]
[1740150419281,3.07527918,664.0,663.13,0.30159998]
[1740150419483,2.30190334,664.01,663.13,0.30159998]
[1740150419679,3.07554588,664.0,663.13,0.30159998]
[1740150419883,1.48526924,664.08,663.16,2.29058457]
[1740150420078,3.07569968,664.07,663.16,2.29058457]
[1740150420378,5.37824284,664.06,663.18,0.30157724]
[1740150420580,3.07569968,664.05,663.18,0.30157724]
[1740150420783,2.30254316,664.06,663.18,0.30157724]
[1740150421284,1.48526924,664.15,663.18,0.30157724]
[1740150421588,3.07648422,664.14,663.18,0.30157724]
[1740150421784,3.07648422,664.13,663.18,0.30157724]
[1740150421987,3.07648422,664.12,663.18,0.30157724]
[1740150422183,2.30304843,664.12,663.25,2.29058457]
[1740150422787,2.30304843,664.12,663.27,0.30153632]
[1740150422980,1.48669726,664.26,663.27,0.30153632]
[1740150423181,3.07682428,664.25,663.27,0.30153632]
[1740150423381,3.07682428,664.24,663.27,0.30153632]
[1740150423588,3.07682428,664.23,663.27,0.30153632]
[1740150423780,2.65735283,665.1,663.27,0.30153632]
[1740150423781,3.07682428,664.22,663.27,0.30153632]
[1740150423980,3.07682428,664.21,663.28,2.29058457]
[1740150424186,3.07714532,664.2,663.3,0.30152268]
[1740150424385,2.30337995,664.23,663.3,0.30152268]
[1740150424582,3.0769746,664.22,663.3,0.30152268]
[1740150424888,3.0769746,664.21,663.3,0.30152268]
[1740150425081,2.65735283,665.09,663.3,0.30152268]
[1740150425082,5.38035455,664.2,663.3,0.30152268]
[1740150425288,2.30337995,664.2,663.3,0.30152268]
[1740150425587,1.48669726,664.34,663.3,0.30152268]
[1740150425786,3.07735611,664.33,663.3,0.30152268]
[1740150425986,3.07735611,664.32,663.3,0.30152268]
[1740150426187,1.48669726,664.3,663.3,0.30152268]
[1740150426387,2.65735283,665.08,663.3,0.30152268]
[1740150426388,3.07734243,664.29,663.3,0.30152268]
[1740150426587,3.07734243,664.28,663.3,0.30152268]
[1740150426786,3.07734243,664.27,663.3,0.30152268]
[1740150427097,3.07734243,664.26,663.3,0.30152268]
[1740150427387,3.07734243,664.25,663.3,0.30152268]
[1740150427585,3.07734243,664.24,663.3,0.30152268]
[1740150427789,3.07734243,664.23,663.3,0.30152268]
[1740150427985,3.07734243,664.22,663.3,0.30152268]
[1740150428189,3.07734243,664.21,663.3,0.30152268]
[1740150428386,3.07787776,664.2,663.3,0.30152268]
[1740150428590,3.07787776,664.19,663.3,0.30152268]
[1740150428893,2.30363435,664.2,663.3,0.30152268]
[1740150429092,5.38136914,664.19,663.3,0.30152268]
[1740150429293,2.30363435,664.19,663.3,0.30152268]
[1740150429686,2.043,664.44,663.3,0.30152268]
[1740150429687,1.48719628,664.41,663.3,0.30152268]
[1740150429988,3.07782974,664.4,663.3,0.30152268]
[1740150430186,1.89408802,664.39,663.3,0.30152268]
[1740150430390,3.07789303,664.38,663.3,0.30152268]
[1740150430694,3.07789303,664.37,663.3,0.30152268]
[1740150430996,5.38179692,664.36,663.3,0.30152268]
[1740150431193,3.07789303,664.35,663.3,0.30152268]
[1740150431393,3.07789303,664.34,663.3,0.30152268]
[1740150431593,3.07789303,664.33,663.3,0.30152268]
[1740150431795,3.07789303,664.32,663.3,0.30152268]
[1740150431988,3.07789303,664.31,663.32,2.29058457]
[1740150432194,3.07789303,664.3,663.32,2.29058457]
[1740150432394,3.07789303,664.29,663.32,2.29058457]
[1740150432596,3.07789303,664.28,663.32,2.29058457]
[1740150432797,2.30390389,664.31,663.32,2.29058457]
[1740150433296,2.30390389,664.31,663.3,0.30152268]
[1740150433297,3.07686738,664.3,663.3,0.30152268]
[1740150433494,2.043,664.44,663.3,0.30152268]
[1740150433693,3.07643284,664.43,663.3,0.30152268]
[1740150433894,3.07643284,664.42,663.3,0.30152268]
[1740150434195,3.07638833,664.41,663.3,0.30152268]
[1740150434396,3.07638833,664.4,663.3,0.30152268]
[1740150434596,3.07638833,664.39,663.3,0.30152268]
[1740150434796,1.48642154,664.34,663.3,0.30152268]
[1740150434994,3.07638833,664.33,663.3,0.30152268]
[1740150435299,3.07638833,664.32,663.3,0.30152268]
[1740150435504,3.07638833,664.31,663.3,0.30152268]
[1740150435702,3.07638833,664.3,663.3,0.30152268]
[1740150435901,3.07638833,664.29,663.3,0.30152268]
[1740150436105,3.07638833,664.28,663.3,0.30152268]
[1740150436301,3.07638833,664.27,663.3,0.30152268]
[1740150436602,3.07638833,664.26,663.3,0.30152268]
[1740150436804,3.07638833,664.25,663.3,0.30152268]
[1740150437004,4.56280987,664.24,663.3,0.30152268]
[1740150437200,1.48642154,664.19,663.3,0.30152268]
[1740150437398,3.07638833,664.18,663.3,0.30152268]
[1740150437599,3.07638833,664.17,663.3,0.30152268]
[1740150437804,2.3027926,664.23,663.3,0.30152268]
[1740150437805,3.07638833,664.16,663.3,0.30152268]
[1740150438004,3.07638833,664.15,663.3,0.30152268]
[1740150438404,1.18322628,664.14,663.3,0.30152268]
[1740150438604,3.07638833,664.13,663.3,0.30152268]
[1740150438804,1.89316205,664.12,663.3,0.30152268]
[1740150439002,3.07638833,664.11,663.3,0.30152268]
[1740150439200,5.37918093,664.1,663.3,0.30152268]
[1740150439405,3.07638833,664.09,663.3,0.30152268]
[1740150439601,3.07638833,664.08,663.3,0.30152268]
[1740150439805,3.07638833,664.07,663.3,0.30152268]
[1740150440108,3.07638833,664.06,663.3,0.30152268]
[1740150440306,3.07638833,664.05,663.3,0.30152268]
[1740150440501,3.07638833,664.04,663.3,0.30152268]
[1740150440705,3.07638833,664.03,663.3,0.30152268]
[1740150441007,3.07638833,664.02,663.3,0.30152268]
[1740150441306,5.37918093,664.01,663.3,0.30152268]
[1740150441502,1.18322628,664.0,663.3,0.30152268]
[1740150441801,1.18322628,663.99,663.3,0.30152268]
[1740150442000,1.18322628,663.98,663.3,0.30152268]
[1740150442205,2.3027926,663.98,663.3,0.30152268]
[1740150442907,2.043,664.44,663.3,0.30152268]
[1740150443206,3.07362993,664.43,663.3,0.30152268]
[1740150443406,3.07362993,664.42,663.3,0.30152268]
[1740150443606,3.07362993,664.41,663.3,0.30152268]
[1740150443906,3.07348104,664.4,663.3,0.30152268]
[1740150444106,3.07348104,664.39,663.3,0.30152268]
[1740150444308,1.48514866,664.12,663.3,0.30152268]
[1740150444511,4.5586297,664.11,663.3,0.30152268]
[1740150444806,1.48514866,664.08,663.3,0.30152268]
[1740150445008,1.48514866,664.04,663.3,0.30152268]
[1740150445207,1.48514866,663.99,663.3,0.30152268]
[1740150445404,3.07348104,663.98,663.3,0.30152268]
[1740150445707,1.48514866,664.01,663.3,0.30152268]
[1740150445708,3.07348104,663.97,663.3,0.30152268]
[1740150445908,3.07193488,663.96,663.3,0.30152268]
[1740150446104,3.07193488,663.95,663.3,0.30152268]
[1740150446310,3.07193488,663.94,663.3,0.30152268]
[1740150446504,3.07193488,663.93,663.3,0.30152268]
[1740150446707,3.07193488,663.92,663.3,0.30152268]
[1740150446903,3.07193488,663.91,663.3,0.30152268]
[1740150447110,5.37274626,663.9,663.3,0.30152268]
[1740150447311,3.07193488,663.89,663.3,0.30152268]
[1740150447607,2.30081138,663.9,663.3,0.30152268]
[1740150447608,3.07193488,663.88,663.3,0.30152268]
[1740150447805,3.07168015,663.87,663.3,0.30152268]
[1740150448010,3.07168015,663.86,663.3,0.30152268]
[1740150448210,3.07170524,663.85,663.3,0.30152268]
[1740150448405,3.07170524,663.84,663.3,0.30152268]
[1740150448705,1.48441159,663.93,663.3,0.30152268]
[1740150448912,3.07181634,663.92,663.3,0.30152268]
[1740150449111,3.07181634,663.91,663.3,0.30152268]
[1740150449310,3.07181634,663.9,663.3,0.30152268]
[1740150449512,3.07181634,663.89,663.3,0.30152268]
[1740150449704,3.07120281,663.88,663.3,0.30152268]
[1740150449904,3.07120281,663.87,663.3,0.30152268]
[1740150450104,3.07120281,663.86,663.3,0.30152268]
[1740150450305,3.07120281,663.85,663.3,0.30152268]
[1740150450506,3.07072186,663.84,663.3,0.30152268]
[1740150450710,3.07072186,663.83,663.3,0.30152268]
[1740150450906,3.07072186,663.82,663.3,0.30152268]
[1740150451106,3.07037279,663.81,663.3,0.30152268]
[1740150451307,2.29991344,663.83,663.3,0.30152268]
[1740150451512,3.07019783,663.82,663.3,0.30152268]
[1740150451708,1.4839401,663.93,663.3,0.30152268]
[1740150452009,5.36771184,663.92,663.3,0.30152268]
[1740150452218,3.06960717,663.91,663.3,0.30152268]
[1740150452415,3.06960717,663.9,663.3,0.30152268]
[1740150452719,3.06960717,663.89,663.3,0.30152268]
[1740150452918,3.06960717,663.88,663.3,0.30152268]
[1740150453117,3.06960717,663.87,663.3,0.30152268]
[1740150453313,3.06960717,663.86,663.3,0.30152268]
[1740150453516,3.06960717,663.85,663.3,0.30152268]
[1740150453716,2.29810467,663.87,663.3,0.30152268]
[1740150453717,3.06960717,663.84,663.3,0.30152268]
[1740150453917,3.06960717,663.83,663.3,0.30152268]
[1740150454119,2.29810467,663.83,663.3,0.30152268]
[1740150454320,3.06977543,663.82,663.3,0.30152268]
[1740150454515,2.29810467,663.83,663.3,0.30152268]
[1740150454715,5.36816558,663.82,663.3,0.30152268]
[1740150454921,2.29810467,663.82,663.3,0.30152268]
[1740150455822,1.48387254,663.9,663.3,0.30152268]
[1740150456020,4.55446981,663.89,663.3,0.30152268]
[1740150456220,3.07059727,663.88,663.3,0.30152268]
[1740150456421,3.07059727,663.87,663.3,0.30152268]
[1740150456621,3.07059727,663.86,663.3,0.30152268]
[1740150456814,3.07059727,663.85,663.3,0.30152268]
[1740150457017,3.07059727,663.84,663.3,0.30152268]
[1740150457325,5.36940711,663.83,663.3,0.30152268]
[1740150457522,3.07059727,663.82,663.3,0.30152268]
[1740150457818,2.29880984,663.83,663.3,0.30152268]
[1740150458222,1.48387254,663.95,663.3,0.30152268]
[1740150458423,3.07044637,663.94,663.3,0.30152268]
[1740150458622,5.36918403,663.93,663.3,0.30152268]
[1740150458824,3.07044637,663.92,663.3,0.30152268]
[1740150459025,5.36918403,663.91,663.3,0.30152268]
[1740150459219,3.07044637,663.9,663.3,0.30152268]
[1740150459420,3.07044637,663.89,663.3,0.30152268]
[1740150459622,3.07044637,663.88,663.3,0.30152268]
[1740150459818,3.07044637,663.87,663.3,0.30152268]
[1740150460020,3.07044637,663.86,663.3,0.30152268]
[1740150460219,3.07044637,663.85,663.3,0.30152268]
[1740150460525,5.36918403,663.84,663.3,0.30152268]
[1740150460722,3.07044637,663.83,663.3,0.30152268]
[1740150460923,2.29873766,663.84,663.3,0.30152268]
[1740150460924,3.07044637,663.82,663.3,0.30152268]
[1740150461225,3.07044637,663.81,663.3,0.30152268]
[1740150461427,2.29873766,663.81,663.3,0.30152268]
[1740150462027,3.06987564,663.8,663.3,0.30152268]
[1740150462222,1.48387254,663.94,663.3,0.30152268]
[1740150462528,3.06985384,663.93,663.3,0.30152268]
[1740150462724,3.06985384,663.92,663.3,0.30152268]
[1740150462922,3.06985384,663.91,663.3,0.30152268]
[1740150463124,3.06985384,663.9,663.3,0.30152268]
[1740150463323,3.07076038,663.89,663.3,0.30152268]
[1740150463629,2.29899777,663.91,663.3,0.30152268]
[1740150463830,3.07093247,663.9,663.3,0.30152268]
[1740150464027,2.29899777,663.88,663.3,0.30152268]
[1740150464221,3.07093247,663.87,663.3,0.30152268]
[1740150464427,3.07093247,663.86,663.3,0.30152268]
[1740150464626,3.07093247,663.85,663.3,0.30152268]
[1740150464827,3.07093247,663.84,663.3,0.30152268]
[1740150465024,3.07093247,663.83,663.3,0.30152268]
[1740150465329,3.07093247,663.82,663.3,0.30152268]
[1740150465530,3.07093247,663.81,663.3,0.30152268]
[1740150465729,3.07093247,663.8,663.3,0.30152268]
[1740150465924,3.07093247,663.79,663.3,0.30152268]
[1740150466129,3.07093247,663.78,663.3,0.30152268]
[1740150466329,3.07093247,663.77,663.3,0.30152268]
[1740150466526,3.07093247,663.76,663.3,0.30152268]
[1740150466724,3.07093247,663.75,663.3,0.30152268]
[1740150466925,3.07093247,663.74,663.3,0.30152268]
[1740150467232,3.07093247,663.73,663.3,0.30152268]
[1740150467534,3.07093247,663.72,663.3,0.30152268]
[1740150467832,3.07093247,663.71,663.3,0.30152268]
[1740150468028,3.07093247,663.7,663.3,0.30152268]
[1740150468229,3.07093247,663.69,663.3,0.30152268]
[1740150468523,3.07093247,663.68,663.3,0.30152268]
[1740150468726,3.07093247,663.67,663.3,0.30152268]
[1740150469032,3.07093247,663.66,663.3,0.30152268]
[1740150469231,3.07093247,663.65,663.3,0.30152268]
[1740150469433,3.07093247,663.64,663.3,0.30152268]
[1740150469624,3.07093247,663.63,663.3,0.30152268]
[1740150469829,3.07093247,663.62,663.3,0.30152268]
[1740150470027,3.07093247,663.61,663.3,0.30152268]
[1740150470331,3.07093247,663.6,663.3,0.30152268]
[1740150470534,3.07093247,663.59,663.3,0.30152268]
[1740150470734,3.07093247,663.58,663.3,0.30152268]
[1740150470932,3.07093247,663.57,663.3,0.30152268]
[1740150471127,2.29899777,663.58,663.3,0.30152268]
[1740150471631,2.29899777,663.57,663.3,0.30152268]
[1740150472427,1.48257883,663.73,663.3,0.30152268]
[1740150472631,1.48257883,663.68,663.3,0.30152268]
[1740150472832,3.06711265,663.67,663.3,0.30152268]
[1740150473027,3.06711265,663.66,663.3,0.30152268]
[1740150473231,3.06711265,663.65,663.3,0.30152268]
[1740150473427,3.06700914,663.64,663.3,0.30152268]
[1740150473628,3.06700914,663.63,663.3,0.30152268]
[1740150473835,3.06700914,663.62,663.3,0.30152268]
[1740150474033,3.06700914,663.61,663.3,0.30152268]
[1740150474232,2.29644637,663.6,663.3,0.30152268]
[1740150474733,3.06630784,663.59,663.3,0.30152268]
[1740150474937,3.06630212,663.58,663.3,0.30152268]
[1740150475230,2.29589017,663.58,663.3,0.30152268]
[1740150475427,3.06591692,663.57,663.3,0.30152268]
[1740150475633,5.3617778,663.56,663.3,0.30152268]
[1740150475830,3.06588763,663.55,663.3,0.30152268]
[1740150476138,5.3617778,663.54,663.3,0.30152268]
[1740150476436,2.29589017,663.54,663.3,0.30152268]
[1740150476736,1.48226638,663.7,663.3,0.30152268]
[1740150476932,1.11177095,665.15,663.3,0.30152268]
[1740150477931,1.48127691,663.76,663.3,0.30152268]
[1740150478134,1.48127691,663.73,663.3,0.30152268]
[1740150478331,1.88610025,663.72,663.3,0.30152268]
[1740150478532,1.17881265,663.71,663.3,0.30152268]
[1740150478734,3.0649129,663.7,663.3,0.30152268]
[1740150478934,3.0649129,663.69,663.3,0.30152268]
[1740150479229,3.0649129,663.68,663.3,0.30152268]
[1740150479429,3.0649129,663.67,663.3,0.30152268]
[1740150479632,3.0649129,663.66,663.3,0.30152268]
[1740150479834,3.0649129,663.65,663.3,0.30152268]
[1740150480133,3.0649129,663.64,663.3,0.30152268]
[1740150480329,3.0649129,663.63,663.3,0.30152268]
[1740150480531,3.0649129,663.62,663.3,0.30152268]
[1740150480737,2.29484299,663.64,663.3,0.30152268]
[1740150480935,1.11177095,665.3,663.3,0.30152268]
[1740150481135,1.48029427,663.82,663.3,0.30152268]
[1740150481329,3.06293411,663.81,663.3,0.30152268]
[1740150481531,3.06293411,663.8,663.3,0.30152268]
[1740150481734,3.06293411,663.79,663.3,0.30152268]
[1740150482030,3.06293411,663.78,663.3,0.30152268]
[1740150482233,1.48029427,663.72,663.3,0.30152268]
[1740150482436,1.48029427,663.65,663.3,0.30152268]
[1740150482636,3.06212985,663.64,663.3,0.30152268]
[1740150482834,5.35507012,663.63,663.3,0.30152268]
[1740150483035,3.06212985,663.62,663.3,0.30152268]
[1740150483236,3.06212985,663.61,663.3,0.30152268]